[Event "*** SCC Grand Prix: Titled Tuesday Blitz"]
[Site "Chess.com"]
[Date "2020.08.11"]
[Round "5"]
[White "guillembaches"]
[Black "AleksanderHnydiuk"]
[Result "0-1"]
[WhiteElo "2398"]
[BlackElo "2562"]
[TimeControl "180+1"]
[EndTime "10:54:56 PDT"]
[Termination "AleksanderHnydiuk won by resignation"]

1. e4 {[%clk 0:03:00.9]} 1... c6 {[%clk 0:03:00.1]} 2. c4 {[%clk 0:02:59.4]}
2... d5 {[%clk 0:03:01]} 3. exd5 {[%clk 0:03:00.2]} 3... cxd5 {[%clk 0:03:01.4]}
4. cxd5 {[%clk 0:03:00.9]} 4... Nf6 {[%clk 0:03:02]} 5. Nc3 {[%clk 0:03:01.3]}
5... Nxd5 {[%clk 0:02:58.9]} 6. Nf3 {[%clk 0:03:01.6]} 6... e6 {[%clk
0:02:56.6]} 7. Bc4 {[%clk 0:02:58.3]} 7... Be7 {[%clk 0:02:49.7]} 8. O-O {[%clk
0:02:57.4]} 8... O-O {[%clk 0:02:49.7]} 9. d4 {[%clk 0:02:57.3]} 9... Nxc3
{[%clk 0:02:42.4]} 10. bxc3 {[%clk 0:02:56.8]} 10... Qc7 {[%clk 0:02:42.6]} 11.
Bd3 {[%clk 0:02:51.3]} 11... b6 {[%clk 0:02:39.2]} 12. Ng5 {[%clk 0:02:40.7]}
12... h6 {[%clk 0:02:34.2]} 13. Qh5 {[%clk 0:02:34.8]} 13... Bxg5 {[%clk
0:01:54.7]} 14. Bxg5 {[%clk 0:02:30]} 14... Bb7 {[%clk 0:01:51.2]} 15. Bf6
{[%clk 0:01:35.5]} 15... Qf4 {[%clk 0:01:29]} 16. Be5 {[%clk 0:01:25.3]} 16...
Qg5 {[%clk 0:01:28.9]} 17. Qxg5 {[%clk 0:01:17.9]} 17... hxg5 {[%clk 0:01:29.8]}
18. c4 {[%clk 0:01:12.9]} 18... Nc6 {[%clk 0:01:28.2]} 19. Be4 {[%clk
0:01:07.8]} 19... Nxe5 {[%clk 0:01:27.8]} 20. Bxb7 {[%clk 0:01:06]} 20... Rab8
{[%clk 0:01:28.4]} 21. Ba6 {[%clk 0:01:06.1]} 21... Nc6 {[%clk 0:01:22.1]} 22.
d5 {[%clk 0:00:57]} 22... Nb4 {[%clk 0:01:19.1]} 23. Bb5 {[%clk 0:00:53.8]}
23... exd5 {[%clk 0:01:14]} 24. cxd5 {[%clk 0:00:37.3]} 24... Nxd5 {[%clk
0:01:12.6]} 25. a4 {[%clk 0:00:37.5]} 25... Nc3 {[%clk 0:01:03.5]} 26. Bc6
{[%clk 0:00:34.5]} 26... Rbc8 {[%clk 0:01:00.8]} 27. Bf3 {[%clk 0:00:33.7]}
27... Rc5 {[%clk 0:00:58.3]} 28. Rfe1 {[%clk 0:00:31.4]} 28... Rfc8 {[%clk
0:00:56.2]} 29. Re7 {[%clk 0:00:27.2]} 29... R5c7 {[%clk 0:00:55.8]} 30. Ree1
{[%clk 0:00:23.5]} 30... Kf8 {[%clk 0:00:54]} 31. h3 {[%clk 0:00:22.6]} 31...
Re7 {[%clk 0:00:51.6]} 32. Rec1 {[%clk 0:00:20]} 32... Rcc7 {[%clk 0:00:50.9]}
33. a5 {[%clk 0:00:19.8]} 33... b5 {[%clk 0:00:50.6]} 34. a6 {[%clk 0:00:19.3]}
34... b4 {[%clk 0:00:50.8]} 35. Bb7 {[%clk 0:00:18.8]} 35... b3 {[%clk
0:00:47.3]} 0-1

[Event "*** SCC Grand Prix: Titled Tuesday Blitz"]
[Site "Chess.com"]
[Date "2020.08.11"]
[Round "5"]
[White "Sophist4Life"]
[Black "queen_iryna"]
[Result "1-0"]
[WhiteElo "2500"]
[BlackElo "2246"]
[TimeControl "180+1"]
[EndTime "10:54:59 PDT"]
[Termination "Sophist4Life won by checkmate"]

1. d4 {[%clk 0:03:00.9]} 1... d6 {[%clk 0:02:59.7]} 2. c4 {[%clk 0:03:01.1]}
2... e5 {[%clk 0:02:59.1]} 3. d5 {[%clk 0:03:00.6]} 3... Be7 {[%clk 0:02:58.3]}
4. Nc3 {[%clk 0:02:56.9]} 4... a5 {[%clk 0:02:56.6]} 5. g3 {[%clk 0:02:56.9]}
5... Na6 {[%clk 0:02:53.1]} 6. Bg2 {[%clk 0:02:56.9]} 6... Nc5 {[%clk
0:02:53.7]} 7. Nf3 {[%clk 0:02:56.6]} 7... Nf6 {[%clk 0:02:44.4]} 8. O-O {[%clk
0:02:55.7]} 8... O-O {[%clk 0:02:43.5]} 9. Ne1 {[%clk 0:02:55.7]} 9... h6 {[%clk
0:02:32.5]} 10. h3 {[%clk 0:02:55.1]} 10... Nh7 {[%clk 0:02:31.6]} 11. e4 {[%clk
0:02:51.1]} 11... f5 {[%clk 0:02:20.2]} 12. exf5 {[%clk 0:02:45.5]} 12... Bxf5
{[%clk 0:02:21.1]} 13. Be3 {[%clk 0:02:42.2]} 13... b6 {[%clk 0:02:14.5]} 14.
Bxc5 {[%clk 0:02:35.3]} 14... bxc5 {[%clk 0:02:15.4]} 15. Ne4 {[%clk 0:02:30.3]}
15... Nf6 {[%clk 0:02:06.1]} 16. Nc3 {[%clk 0:02:25.7]} 16... Rb8 {[%clk
0:01:49.9]} 17. b3 {[%clk 0:02:23.7]} 17... Nh7 {[%clk 0:01:34.8]} 18. Nf3
{[%clk 0:02:21.6]} 18... Bf6 {[%clk 0:01:30.9]} 19. Rc1 {[%clk 0:02:17.7]} 19...
e4 {[%clk 0:01:21.6]} 20. Nd2 {[%clk 0:02:11.6]} 20... Ng5 {[%clk 0:01:14.6]}
21. h4 {[%clk 0:02:09]} 21... Nf3+ {[%clk 0:00:50]} 22. Nxf3 {[%clk 0:02:05.7]}
22... exf3 {[%clk 0:00:49.9]} 23. Bxf3 {[%clk 0:01:58.8]} 23... Qe8 {[%clk
0:00:33.5]} 24. Bh5 {[%clk 0:01:41.6]} 24... Qd7 {[%clk 0:00:31.2]} 25. Bf3
{[%clk 0:01:20.7]} 25... Qf7 {[%clk 0:00:29.5]} 26. Bg4 {[%clk 0:01:16.5]} 26...
Bxg4 {[%clk 0:00:26.3]} 27. Qxg4 {[%clk 0:01:17.4]} 27... Bd4 {[%clk 0:00:26.7]}
28. Ne4 {[%clk 0:01:15.9]} 28... Rbe8 {[%clk 0:00:25.4]} 29. Rc2 {[%clk
0:01:11.8]} 29... Qf3 {[%clk 0:00:24.5]} 30. Qxf3 {[%clk 0:01:11.1]} 30... Rxf3
{[%clk 0:00:25.4]} 31. Re2 {[%clk 0:01:11.2]} 31... Ref8 {[%clk 0:00:24.6]} 32.
Kg2 {[%clk 0:01:10.8]} 32... g5 {[%clk 0:00:23.8]} 33. hxg5 {[%clk 0:01:10.2]}
33... hxg5 {[%clk 0:00:24.7]} 34. Nxg5 {[%clk 0:01:04.7]} 34... Rc3 {[%clk
0:00:24]} 35. Ne6 {[%clk 0:01:04.2]} 35... Rf6 {[%clk 0:00:22.2]} 36. Rh1 {[%clk
0:00:53.5]} 36... a4 {[%clk 0:00:20.8]} 37. Rh4 {[%clk 0:00:48.7]} 37... axb3
{[%clk 0:00:20.2]} 38. axb3 {[%clk 0:00:49.6]} 38... Rxb3 {[%clk 0:00:20.3]} 39.
Rg4+ {[%clk 0:00:46.9]} 39... Kf7 {[%clk 0:00:19.7]} 40. Rg7+ {[%clk 0:00:45.8]}
40... Ke8 {[%clk 0:00:18.7]} 41. Nxc7+ {[%clk 0:00:43.9]} 41... Kd8 {[%clk
0:00:17.9]} 42. Re8# {[%clk 0:00:41.3]} 1-0

[Event "*** SCC Grand Prix: Titled Tuesday Blitz"]
[Site "Chess.com"]
[Date "2020.08.11"]
[Round "5"]
[White "FlamingPhoenix123"]
[Black "Gabrielian_Artur"]
[Result "1-0"]
[WhiteElo "2555"]
[BlackElo "2766"]
[TimeControl "180+1"]
[EndTime "10:55:02 PDT"]
[Termination "FlamingPhoenix123 won by resignation"]

1. e4 {[%clk 0:03:00.9]} 1... c5 {[%clk 0:02:59.8]} 2. Nf3 {[%clk 0:03:00.7]}
2... d6 {[%clk 0:02:59.9]} 3. d4 {[%clk 0:03:00.7]} 3... cxd4 {[%clk 0:03:00.2]}
4. Nxd4 {[%clk 0:03:01.6]} 4... Nf6 {[%clk 0:03:00.4]} 5. Nc3 {[%clk 0:03:01.6]}
5... Nc6 {[%clk 0:03:00.3]} 6. Bg5 {[%clk 0:03:01.1]} 6... e6 {[%clk 0:03:00.3]}
7. Qd2 {[%clk 0:02:56.8]} 7... a6 {[%clk 0:03:00.3]} 8. O-O-O {[%clk 0:02:55.3]}
8... Bd7 {[%clk 0:03:00.3]} 9. f4 {[%clk 0:02:49.5]} 9... Be7 {[%clk 0:03:00.1]}
10. Nf3 {[%clk 0:02:33.8]} 10... b5 {[%clk 0:02:59.5]} 11. Bxf6 {[%clk
0:02:32.8]} 11... gxf6 {[%clk 0:02:58.9]} 12. Kb1 {[%clk 0:02:33.3]} 12... Qa5
{[%clk 0:02:58.3]} 13. f5 {[%clk 0:02:30.3]} 13... h5 {[%clk 0:02:57.9]} 14. g3
{[%clk 0:02:27.3]} 14... Rc8 {[%clk 0:02:54.8]} 15. Bh3 {[%clk 0:02:22.7]} 15...
b4 {[%clk 0:02:54]} 16. Ne2 {[%clk 0:02:16.6]} 16... e5 {[%clk 0:02:53.5]} 17.
c4 {[%clk 0:02:10.5]} 17... Nd8 {[%clk 0:02:27.3]} 18. b3 {[%clk 0:02:04]} 18...
Bc6 {[%clk 0:02:22.8]} 19. Qe3 {[%clk 0:01:59.3]} 19... Qc5 {[%clk 0:02:19]} 20.
Qd3 {[%clk 0:01:51.1]} 20... Nb7 {[%clk 0:02:16.4]} 21. Bg2 {[%clk 0:01:47.5]}
21... Qf2 {[%clk 0:02:10]} 22. Ne1 {[%clk 0:01:36.2]} 22... Nc5 {[%clk
0:02:04.5]} 23. Qc2 {[%clk 0:01:34.9]} 23... h4 {[%clk 0:01:31.1]} 24. g4 {[%clk
0:01:29.8]} 24... h3 {[%clk 0:01:26.3]} 25. Bf3 {[%clk 0:01:29.9]} 25... Qxf3
{[%clk 0:00:59.7]} 26. Nxf3 {[%clk 0:01:30.8]} 26... Bxe4 {[%clk 0:00:59.8]} 27.
Ne1 {[%clk 0:01:21.7]} 27... Bxc2+ {[%clk 0:00:58]} 28. Nxc2 {[%clk 0:01:22.6]}
28... Rg8 {[%clk 0:00:42]} 29. Rhg1 {[%clk 0:01:22.3]} 29... Bf8 {[%clk
0:00:39.2]} 30. Nxb4 {[%clk 0:01:16.4]} 30... a5 {[%clk 0:00:36.1]} 31. Nd5
{[%clk 0:01:16]} 31... Be7 {[%clk 0:00:36.6]} 32. Nec3 {[%clk 0:01:15.2]} 32...
a4 {[%clk 0:00:17.3]} 33. Kc2 {[%clk 0:01:07]} 33... axb3+ {[%clk 0:00:17.1]}
34. axb3 {[%clk 0:01:07.9]} 34... Rb8 {[%clk 0:00:14.7]} 35. Nb5 {[%clk
0:01:04.9]} 35... Kd7 {[%clk 0:00:12.1]} 36. Ra1 {[%clk 0:01:02.7]} 36... Rgc8
{[%clk 0:00:11.9]} 37. Ra7+ {[%clk 0:01:02]} 37... Rb7 {[%clk 0:00:12.3]} 38.
Rxb7+ {[%clk 0:01:00.7]} 38... Nxb7 {[%clk 0:00:11.9]} 39. Rg3 {[%clk
0:01:00.8]} 39... Rg8 {[%clk 0:00:11]} 40. Nbc3 {[%clk 0:00:58.5]} 40... Nc5
{[%clk 0:00:10.6]} 41. b4 {[%clk 0:00:58.7]} 41... Nb7 {[%clk 0:00:10.6]} 42.
Ne4 {[%clk 0:00:58.8]} 42... Bd8 {[%clk 0:00:10.4]} 43. Nexf6+ {[%clk
0:00:58.8]} 1-0

[Event "*** SCC Grand Prix: Titled Tuesday Blitz"]
[Site "Chess.com"]
[Date "2020.08.11"]
[Round "5"]
[White "capatl"]
[Black "UCantHandleDenker"]
[Result "0-1"]
[WhiteElo "2400"]
[BlackElo "2573"]
[TimeControl "180+1"]
[EndTime "10:55:02 PDT"]
[Termination "UCantHandleDenker won by resignation"]

1. c4 {[%clk 0:03:00.9]} 1... d6 {[%clk 0:02:59.4]} 2. Nc3 {[%clk 0:02:59.4]}
2... Nf6 {[%clk 0:02:59.3]} 3. g3 {[%clk 0:02:59.6]} 3... e5 {[%clk 0:02:56.1]}
4. Bg2 {[%clk 0:02:59]} 4... Be7 {[%clk 0:02:56.1]} 5. d4 {[%clk 0:02:55.2]}
5... Nbd7 {[%clk 0:02:55.1]} 6. Nf3 {[%clk 0:02:42]} 6... O-O {[%clk 0:02:54.3]}
7. O-O {[%clk 0:02:40.8]} 7... c6 {[%clk 0:02:52.9]} 8. Qc2 {[%clk 0:02:36.8]}
8... a6 {[%clk 0:02:51.5]} 9. Rd1 {[%clk 0:02:36.3]} 9... Qc7 {[%clk 0:02:51]}
10. dxe5 {[%clk 0:02:08.2]} 10... dxe5 {[%clk 0:02:50.1]} 11. Ne4 {[%clk
0:01:52.1]} 11... Re8 {[%clk 0:02:49.2]} 12. Nxf6+ {[%clk 0:01:41.4]} 12... Nxf6
{[%clk 0:02:47.4]} 13. h3 {[%clk 0:01:32.3]} 13... h6 {[%clk 0:02:46.3]} 14. Be3
{[%clk 0:01:30.1]} 14... Be6 {[%clk 0:02:35.5]} 15. b3 {[%clk 0:01:27.7]} 15...
Nd7 {[%clk 0:02:26.3]} 16. c5 {[%clk 0:01:04.8]} 16... Nf6 {[%clk 0:02:25.9]}
17. a3 {[%clk 0:00:54.6]} 17... Nd5 {[%clk 0:02:18.1]} 18. Bd2 {[%clk
0:00:53.8]} 18... e4 {[%clk 0:02:12.7]} 19. Qxe4 {[%clk 0:00:39.3]} 19... Bf6
{[%clk 0:02:12.3]} 20. Qc2 {[%clk 0:00:32.1]} 20... Bxa1 {[%clk 0:02:08.1]} 21.
Rxa1 {[%clk 0:00:33]} 21... Nf6 {[%clk 0:02:03.5]} 22. e3 {[%clk 0:00:31]} 22...
Bd5 {[%clk 0:02:01.8]} 23. b4 {[%clk 0:00:28.5]} 23... Ne4 {[%clk 0:01:54]} 24.
Be1 {[%clk 0:00:27.9]} 24... Rad8 {[%clk 0:01:52.6]} 25. Nd4 {[%clk 0:00:27.4]}
25... Qd7 {[%clk 0:01:50.3]} 26. Rd1 {[%clk 0:00:26.3]} 26... Nf6 {[%clk
0:01:47.1]} 27. Bf1 {[%clk 0:00:23.3]} 27... Be4 {[%clk 0:01:41.5]} 28. Qe2
{[%clk 0:00:19.7]} 28... Qd5 {[%clk 0:01:39.6]} 29. Bc3 {[%clk 0:00:19.8]} 29...
Bf3 {[%clk 0:01:32.1]} 30. Qxf3 {[%clk 0:00:17.3]} 30... Qxf3 {[%clk 0:01:31.7]}
31. Nxf3 {[%clk 0:00:18.2]} 31... Rxd1 {[%clk 0:01:31.8]} 32. Kg2 {[%clk
0:00:19.1]} 32... Ne4 {[%clk 0:01:30.4]} 33. Bd4 {[%clk 0:00:18.2]} 33... Rc1
{[%clk 0:01:25.2]} 34. Bd3 {[%clk 0:00:18.2]} 34... Nf6 {[%clk 0:01:16]} 35. Ne5
{[%clk 0:00:17.3]} 35... Nd5 {[%clk 0:01:14]} 36. Kf3 {[%clk 0:00:15.5]} 36...
f6 {[%clk 0:01:11.9]} 37. Nd7 {[%clk 0:00:13.7]} 37... Kf7 {[%clk 0:01:10.6]}
38. Nb6 {[%clk 0:00:13.3]} 38... Nxb6 {[%clk 0:01:10.1]} 39. cxb6 {[%clk
0:00:14.2]} 39... Rd8 {[%clk 0:01:09.4]} 40. Be4 {[%clk 0:00:13.8]} 40... Rxd4
{[%clk 0:01:07.3]} 41. exd4 {[%clk 0:00:13.9]} 41... Rc3+ {[%clk 0:01:05.5]} 42.
Kf4 {[%clk 0:00:14.3]} 42... Ke6 {[%clk 0:01:04.6]} 43. Bf5+ {[%clk 0:00:13.2]}
43... Kd6 {[%clk 0:01:03.9]} 44. Bc8 {[%clk 0:00:14.1]} 44... Rxa3 {[%clk
0:01:01.6]} 45. Bxb7 {[%clk 0:00:14.3]} 45... Rb3 {[%clk 0:01:02.2]} 46. Bc8
{[%clk 0:00:12.9]} 46... Rxb4 {[%clk 0:01:02.1]} 47. b7 {[%clk 0:00:13.8]} 47...
Kc7 {[%clk 0:01:02]} 48. Kf5 {[%clk 0:00:14.7]} 48... Rxb7 {[%clk 0:01:00.8]}
49. Kg6 {[%clk 0:00:15.6]} 49... Kxc8 {[%clk 0:01:00.8]} 0-1

[Event "*** SCC Grand Prix: Titled Tuesday Blitz"]
[Site "Chess.com"]
[Date "2020.08.11"]
[Round "5"]
[White "ViktoriyaTarasova"]
[Black "chessfrendz"]
[Result "0-1"]
[WhiteElo "2252"]
[BlackElo "2267"]
[TimeControl "180+1"]
[EndTime "10:55:02 PDT"]
[Termination "chessfrendz won by resignation"]

1. d4 {[%clk 0:03:00.9]} 1... Nf6 {[%clk 0:02:55.7]} 2. c4 {[%clk 0:02:55]} 2...
e6 {[%clk 0:02:54.9]} 3. Nc3 {[%clk 0:02:44.6]} 3... d6 {[%clk 0:02:51.1]} 4. e4
{[%clk 0:02:43.1]} 4... d5 {[%clk 0:02:51.8]} 5. cxd5 {[%clk 0:02:41.1]} 5...
exd5 {[%clk 0:02:45.8]} 6. e5 {[%clk 0:02:33.9]} 6... Ne4 {[%clk 0:02:41]} 7.
Bd3 {[%clk 0:02:15.8]} 7... Nxc3 {[%clk 0:02:37]} 8. bxc3 {[%clk 0:02:06.7]}
8... Be7 {[%clk 0:02:36.9]} 9. Ne2 {[%clk 0:01:58.6]} 9... O-O {[%clk
0:02:30.8]} 10. O-O {[%clk 0:01:55.5]} 10... Nc6 {[%clk 0:02:25.8]} 11. f4
{[%clk 0:01:53.3]} 11... f5 {[%clk 0:02:24.5]} 12. exf6 {[%clk 0:01:45.5]} 12...
Bxf6 {[%clk 0:02:23.2]} 13. Qc2 {[%clk 0:01:46.2]} 13... h6 {[%clk 0:02:19.4]}
14. Ng3 {[%clk 0:01:44.5]} 14... Nxd4 {[%clk 0:02:09]} 15. cxd4 {[%clk
0:01:36.1]} 15... Bxd4+ {[%clk 0:01:38]} 16. Kh1 {[%clk 0:01:35]} 16... Bxa1
{[%clk 0:01:37.5]} 17. Ba3 {[%clk 0:01:32.9]} 17... Bf6 {[%clk 0:01:29.2]} 18.
Bxf8 {[%clk 0:01:32]} 18... Qxf8 {[%clk 0:01:27.7]} 19. Qxc7 {[%clk 0:01:31.4]}
19... Qf7 {[%clk 0:01:20.4]} 20. Qc2 {[%clk 0:01:14.8]} 20... Bd7 {[%clk
0:01:16.4]} 21. Bg6 {[%clk 0:01:13.5]} 21... Qe7 {[%clk 0:01:14.3]} 22. Qd3
{[%clk 0:01:10.1]} 22... Bc6 {[%clk 0:01:10.4]} 23. Nf5 {[%clk 0:01:08.5]} 23...
Qb4 {[%clk 0:01:01.1]} 24. Qg3 {[%clk 0:00:48.3]} 24... Kf8 {[%clk 0:00:58.4]}
25. Bh5 {[%clk 0:00:39.7]} 25... Qe4 {[%clk 0:00:46.6]} 26. Nd6 {[%clk
0:00:28.2]} 26... Qe6 {[%clk 0:00:39.4]} 27. Nf7 {[%clk 0:00:15.4]} 27... d4
{[%clk 0:00:33.7]} 28. Qxg7+ {[%clk 0:00:14.4]} 28... Kxg7 {[%clk 0:00:25.7]}
0-1

[Event "*** SCC Grand Prix: Titled Tuesday Blitz"]
[Site "Chess.com"]
[Date "2020.08.11"]
[Round "5"]
[White "GianmarcoVaR"]
[Black "belisarius64"]
[Result "0-1"]
[WhiteElo "2446"]
[BlackElo "2709"]
[TimeControl "180+1"]
[EndTime "10:55:04 PDT"]
[Termination "belisarius64 won on time"]

1. d4 {[%clk 0:03:00.3]} 1... Nf6 {[%clk 0:02:59.1]} 2. c4 {[%clk 0:03:00.1]}
2... g6 {[%clk 0:02:59.6]} 3. Nf3 {[%clk 0:02:59.9]} 3... Bg7 {[%clk 0:02:58.7]}
4. g3 {[%clk 0:03:00.3]} 4... O-O {[%clk 0:02:57.4]} 5. Bg2 {[%clk 0:03:00.7]}
5... d6 {[%clk 0:02:58]} 6. O-O {[%clk 0:03:00.9]} 6... Nc6 {[%clk 0:02:58.6]}
7. Nc3 {[%clk 0:03:00.4]} 7... e5 {[%clk 0:02:59.2]} 8. dxe5 {[%clk 0:02:55.2]}
8... Nxe5 {[%clk 0:02:57.4]} 9. b3 {[%clk 0:02:42.1]} 9... Nxf3+ {[%clk
0:02:56.9]} 10. Bxf3 {[%clk 0:02:41.9]} 10... c6 {[%clk 0:02:57.4]} 11. Bb2
{[%clk 0:02:40.6]} 11... Bh3 {[%clk 0:02:57.5]} 12. Re1 {[%clk 0:02:39.3]} 12...
d5 {[%clk 0:02:58.1]} 13. cxd5 {[%clk 0:02:38.3]} 13... Nxd5 {[%clk 0:02:59]}
14. Qc1 {[%clk 0:02:18.8]} 14... Nxc3 {[%clk 0:02:31.6]} 15. Bxc3 {[%clk
0:02:17.1]} 15... a5 {[%clk 0:02:32.2]} 16. Rd1 {[%clk 0:02:05.6]} 16... Qe7
{[%clk 0:02:25.3]} 17. Qb2 {[%clk 0:01:47.4]} 17... Bxc3 {[%clk 0:02:24.5]} 18.
Qxc3 {[%clk 0:01:48.3]} 18... a4 {[%clk 0:02:14.1]} 19. b4 {[%clk 0:01:46.9]}
19... Rfd8 {[%clk 0:02:11.2]} 20. a3 {[%clk 0:01:45.7]} 20... Rd7 {[%clk
0:02:01.1]} 21. Rxd7 {[%clk 0:01:33.8]} 21... Qxd7 {[%clk 0:02:01.2]} 22. Qc2
{[%clk 0:01:32.6]} 22... Bf5 {[%clk 0:01:49.1]} 23. Rd1 {[%clk 0:01:28.7]} 23...
Qe6 {[%clk 0:01:42.6]} 24. Qc5 {[%clk 0:01:06]} 24... Qb3 {[%clk 0:01:36]} 25.
Ra1 {[%clk 0:00:45.5]} 25... Rd8 {[%clk 0:01:33.7]} 26. Qe7 {[%clk 0:00:45]}
26... Rd7 {[%clk 0:01:07.3]} 27. Qe5 {[%clk 0:00:30.2]} 27... Rd2 {[%clk
0:00:53.4]} 28. g4 {[%clk 0:00:13.3]} 28... Be6 {[%clk 0:00:41.6]} 29. Qb8+
{[%clk 0:00:11.6]} 29... Kg7 {[%clk 0:00:41.6]} 30. Qxb7 {[%clk 0:00:11.6]}
30... Qb2 {[%clk 0:00:39.7]} 31. Re1 {[%clk 0:00:04.6]} 31... Qxa3 {[%clk
0:00:39.8]} 0-1

[Event "*** SCC Grand Prix: Titled Tuesday Blitz"]
[Site "Chess.com"]
[Date "2020.08.11"]
[Round "5"]
[White "BeanScreen"]
[Black "eightbyeightchess"]
[Result "1-0"]
[WhiteElo "2704"]
[BlackElo "2444"]
[TimeControl "180+1"]
[EndTime "10:55:04 PDT"]
[Termination "BeanScreen won by resignation"]

1. e4 {[%clk 0:03:00.8]} 1... e6 {[%clk 0:02:53.5]} 2. d4 {[%clk 0:03:01.2]}
2... d5 {[%clk 0:02:51.3]} 3. Nc3 {[%clk 0:03:02.1]} 3... Nf6 {[%clk 0:02:48.5]}
4. Bg5 {[%clk 0:03:03]} 4... Be7 {[%clk 0:02:43.8]} 5. e5 {[%clk 0:03:03.8]}
5... Nfd7 {[%clk 0:02:43.2]} 6. h4 {[%clk 0:03:04.2]} 6... a6 {[%clk 0:02:42.5]}
7. Qg4 {[%clk 0:03:05]} 7... Bxg5 {[%clk 0:02:42.3]} 8. hxg5 {[%clk 0:03:04.8]}
8... c5 {[%clk 0:02:42.7]} 9. g6 {[%clk 0:02:58.3]} 9... f5 {[%clk 0:02:38.4]}
10. exf6 {[%clk 0:02:55.5]} 10... Nxf6 {[%clk 0:02:33.4]} 11. Qh4 {[%clk
0:02:45.3]} 11... cxd4 {[%clk 0:02:28]} 12. Qxd4 {[%clk 0:02:46.2]} 12... Nc6
{[%clk 0:02:26.4]} 13. Qd2 {[%clk 0:02:46.3]} 13... h6 {[%clk 0:02:11.3]} 14.
O-O-O {[%clk 0:02:45.2]} 14... Bd7 {[%clk 0:01:49.4]} 15. Nf3 {[%clk 0:02:44.7]}
15... Qa5 {[%clk 0:01:45.9]} 16. Nd4 {[%clk 0:02:39.8]} 16... O-O-O {[%clk
0:01:26.8]} 17. f4 {[%clk 0:02:26.3]} 17... Kb8 {[%clk 0:01:11.3]} 18. Be2
{[%clk 0:02:24.1]} 18... Nxd4 {[%clk 0:01:08.4]} 19. Qxd4 {[%clk 0:02:24.3]}
19... Rc8 {[%clk 0:01:09]} 20. Kb1 {[%clk 0:02:23.8]} 20... b5 {[%clk
0:00:55.8]} 21. a3 {[%clk 0:02:13.6]} 21... Rc7 {[%clk 0:00:55.1]} 22. Qe5
{[%clk 0:02:11.3]} 22... Rc8 {[%clk 0:00:51.5]} 23. Rh3 {[%clk 0:01:45.9]} 23...
Ka8 {[%clk 0:00:44.6]} 24. Re3 {[%clk 0:01:39]} 24... b4 {[%clk 0:00:35.8]} 25.
axb4 {[%clk 0:01:39.3]} 25... Qxb4 {[%clk 0:00:36.7]} 26. Bxa6 {[%clk
0:01:34.3]} 26... Rb8 {[%clk 0:00:36.6]} 27. Na2 {[%clk 0:01:34.1]} 27... Qb6
{[%clk 0:00:29.3]} 28. Ra3 {[%clk 0:01:33.6]} 28... Ra7 {[%clk 0:00:28.7]} 29.
Rb3 {[%clk 0:01:29.3]} 29... Qd8 {[%clk 0:00:20.2]} 30. Rxb8+ {[%clk 0:01:23.9]}
30... Qxb8 {[%clk 0:00:21.1]} 31. Qxb8+ {[%clk 0:01:22.4]} 31... Kxb8 {[%clk
0:00:22]} 32. Bd3 {[%clk 0:01:22.5]} 32... Ra4 {[%clk 0:00:16.1]} 33. g3 {[%clk
0:01:21]} 33... Nh5 {[%clk 0:00:15.8]} 34. Rg1 {[%clk 0:01:19.2]} 34... Be8
{[%clk 0:00:13.4]} 35. Nc3 {[%clk 0:01:19.1]} 35... Ra5 {[%clk 0:00:11.6]} 36.
Ne2 {[%clk 0:01:16.4]} 36... Nf6 {[%clk 0:00:11]} 37. Nd4 {[%clk 0:01:16.4]}
37... Bd7 {[%clk 0:00:08.7]} 38. Re1 {[%clk 0:01:16.3]} 38... Nh5 {[%clk
0:00:07]} 39. Nxe6 {[%clk 0:01:12.9]} 39... Nxg3 {[%clk 0:00:05.7]} 40. Nxg7
{[%clk 0:01:13.8]} 40... d4 {[%clk 0:00:05.6]} 41. Re7 {[%clk 0:01:13.7]} 41...
Kc8 {[%clk 0:00:05.3]} 42. Ne6 {[%clk 0:01:11.6]} 42... Bxe6 {[%clk 0:00:04.2]}
43. Rxe6 {[%clk 0:01:12.2]} 43... Ra7 {[%clk 0:00:04.4]} 44. Re8+ {[%clk
0:01:10.6]} 44... Kd7 {[%clk 0:00:04.8]} 45. g7 {[%clk 0:01:11.5]} 1-0

[Event "*** SCC Grand Prix: Titled Tuesday Blitz"]
[Site "Chess.com"]
[Date "2020.08.11"]
[Round "5"]
[White "Juanovic"]
[Black "HanSchut"]
[Result "1/2-1/2"]
[WhiteElo "2067"]
[BlackElo "2307"]
[TimeControl "180+1"]
[EndTime "10:55:04 PDT"]
[Termination "Game drawn by repetition"]

1. e4 {[%clk 0:03:00.9]} 1... c5 {[%clk 0:02:59.5]} 2. Nf3 {[%clk 0:02:59.7]}
2... d6 {[%clk 0:02:59.8]} 3. d4 {[%clk 0:02:59.7]} 3... cxd4 {[%clk 0:03:00.7]}
4. Nxd4 {[%clk 0:03:00.2]} 4... Nf6 {[%clk 0:03:01.3]} 5. Nc3 {[%clk 0:03:00.5]}
5... a6 {[%clk 0:03:02]} 6. Bg5 {[%clk 0:03:00.5]} 6... e6 {[%clk 0:03:01.8]} 7.
f4 {[%clk 0:03:00.6]} 7... Be7 {[%clk 0:03:02.5]} 8. Qf3 {[%clk 0:03:00.8]} 8...
h6 {[%clk 0:03:02.8]} 9. Bh4 {[%clk 0:03:00.7]} 9... g5 {[%clk 0:03:03]} 10.
fxg5 {[%clk 0:03:00.8]} 10... Nfd7 {[%clk 0:03:03.5]} 11. g6 {[%clk 0:02:31.9]}
11... Bxh4+ {[%clk 0:03:00.6]} 12. g3 {[%clk 0:02:32.3]} 12... Ne5 {[%clk
0:02:50.7]} 13. gxf7+ {[%clk 0:02:29.5]} 13... Kf8 {[%clk 0:02:49.2]} 14. Qh5
{[%clk 0:02:24.3]} 14... Bf6 {[%clk 0:02:42.6]} 15. Bh3 {[%clk 0:02:15]} 15...
Qe7 {[%clk 0:02:35.1]} 16. O-O {[%clk 0:02:12.9]} 16... Nbc6 {[%clk 0:02:07.5]}
17. Nxc6 {[%clk 0:01:20.6]} 17... bxc6 {[%clk 0:02:08.4]} 18. Rxf6 {[%clk
0:00:52.5]} 18... Qxf6 {[%clk 0:02:01.7]} 19. Rf1 {[%clk 0:00:53.4]} 19... Qg6
{[%clk 0:01:49.7]} 20. Qd1 {[%clk 0:00:50.7]} 20... d5 {[%clk 0:01:17.2]} 21.
Qd4 {[%clk 0:00:44.7]} 21... Qg5 {[%clk 0:00:53.3]} 22. Qc5+ {[%clk 0:00:38.9]}
22... Kg7 {[%clk 0:00:53.4]} 23. f8=Q+ {[%clk 0:00:35.6]} 23... Rxf8 {[%clk
0:00:50.4]} 24. Qxf8+ {[%clk 0:00:35.2]} 24... Kg6 {[%clk 0:00:46.3]} 25. Qe8+
{[%clk 0:00:22.3]} 25... Kh7 {[%clk 0:00:27.8]} 26. Ne2 {[%clk 0:00:19.1]} 26...
Qe3+ {[%clk 0:00:17.6]} 27. Rf2 {[%clk 0:00:18.9]} 27... Nf3+ {[%clk 0:00:17.8]}
28. Kh1 {[%clk 0:00:17.6]} 28... Qxf2 {[%clk 0:00:13]} 29. Qf7+ {[%clk 0:00:18]}
29... Kh8 {[%clk 0:00:12.1]} 30. Qf8+ {[%clk 0:00:18.5]} 30... Kh7 {[%clk
0:00:12.4]} 31. Qf7+ {[%clk 0:00:18.9]} 31... Kh8 {[%clk 0:00:12.9]} 32. Qf8+
{[%clk 0:00:13.1]} 32... Kh7 {[%clk 0:00:13.1]} 33. Qf7+ {[%clk 0:00:13.7]}
1/2-1/2